fUST/lending_fUST_20241217
["ID","MTS","AMOUNT","RATE_DAILY","PERIOD"]
[345610505,1734379855936,-663.11,0.00029041,7]
[345610506,1734379855947,-4474.25,0.00029041,7]
[345610507,1734379855957,-1465.05,0.00029041,7]
[345610508,1734379855968,-500.0,0.00029041,7]
[345610509,1734379855978,-500.0,0.00029041,7]
[345610510,1734379855988,-2124.74,0.00029041,5]
[345610511,1734379855998,-1336.85,0.00029041,7]
[345610512,1734379856009,-500.0,0.00029041,7]
[345610513,1734379856019,-500.0,0.00029041,7]
[345610514,1734379856030,-500.0,0.00029041,7]
[345610515,1734379856040,-361.69785167,0.00029041,7]
[345610516,1734379856052,-28712.1,0.00029041,7]
[345610517,1734379856063,-575.38,0.00029041,7]
[345610518,1734379856074,-942.46,0.00029041,7]
[345610519,1734379856087,-500.0,0.00029041,7]
[345610520,1734379856097,-1620.62,0.00029041,7]
[345610521,1734379856107,-500.0,0.00029041,7]
[345610522,1734379856117,-500.0,0.00029041,7]
[345610523,1734379856127,-500.0,0.00029041,2]
[345610524,1734379856136,-500.0,0.00029041,7]
[345610525,1734379856146,-1561.39,0.00029041,7]
[345610526,1734379856156,-500.0,0.00029041,7]
[345610527,1734379856166,-3178.65,0.00029041,7]
[345610528,1734379856176,-2897.69,0.00029041,7]
[345610529,1734379856186,-802.69,0.00029041,7]
[345610530,1734379856196,-500.0,0.00029041,7]
[345610531,1734379856206,-500.0,0.00029041,7]
[345610532,1734379856217,-1038.17,0.00029041,7]
[345610533,1734379856228,-500.0,0.00029041,7]
[345610534,1734379856238,-1984.0,0.00029041,7]
[345610535,1734379856249,-500.0,0.00029041,7]
[345610536,1734379856259,-659.89,0.00029041,7]
[345610537,1734379856273,-500.0,0.00029041,7]
[345610538,1734379856282,-1608.74,0.00029041,7]
[345610539,1734379856292,-500.0,0.00029041,7]
[345610540,1734379856302,-1378.43,0.00029041,7]
[345610541,1734379856313,-500.0,0.00029041,7]
[345610542,1734379856323,-500.0,0.00029041,7]
[345610543,1734379856338,-1465.72,0.00029041,7]
[345610544,1734379856349,-1110.6,0.00029041,7]
[345610545,1734379856358,-876.74,0.00029041,7]
[345610546,1734379856368,-500.0,0.00029041,7]
[345610547,1734379856378,-500.0,0.00029041,7]
[345610548,1734379856388,-5747.47,0.00029041,7]
[345610549,1734379856398,-500.0,0.00029041,7]
[345610550,1734379856407,-500.0,0.00029041,7]
[345610551,1734379856417,-500.0,0.00029041,7]
[345610552,1734379856427,-500.0,0.00029041,7]
[345610553,1734379856438,-500.0,0.00029041,7]
[345610554,1734379856448,-153.26,0.000291,31]
[345610555,1734379856459,-153.26,0.000291,31]
[345610556,1734379856469,-153.26,0.000291,31]
[345610557,1734379856478,-153.26,0.000291,31]
[345610558,1734379856488,-153.26,0.000291,31]
[345610559,1734379856498,-153.26,0.000291,31]
[345610560,1734379856507,-153.26,0.000291,31]
[345610561,1734379856517,-153.26,0.000291,31]
[345610562,1734379856527,-153.26,0.000291,31]
[345610563,1734379856536,-153.26,0.000291,31]
[345610564,1734379856545,-153.26,0.000291,31]
[345610565,1734379856555,-153.26,0.000291,31]
[345610566,1734379856565,-153.26,0.000291,31]
[345610567,1734379856575,-153.26,0.000291,31]
[345610568,1734379856591,-9141.77691629,0.00029173,2]
[345610569,1734379856601,-500.0,0.00029222,5]
[345610570,1734379856611,-150.5,0.0002926,120]
[345610571,1734379856621,-150.5,0.0002927,120]
[345610572,1734379856631,-150.5,0.0002928,120]
[345610573,1734379856641,-150.5,0.00029285,120]
[345610574,1734379856651,-303.30024024,0.0002929,2]
[345610575,1734379856660,-150.5,0.00029295,120]
[345610576,1734379856670,-150.5,0.00029305,120]
[345610577,1734379856680,-311.5090114,0.00029315,7]
[345610578,1734379856689,-500.0,0.00029315,7]
[345610579,1734379856699,-500.0,0.00029315,7]
[345610580,1734379856708,-628.905889,0.00029315,7]
[345610581,1734379856718,-500.0,0.00029315,7]
[345610582,1734379856727,-1361.4,0.00029315,7]
[345610583,1734379856737,-500.0,0.00029315,7]
[345610584,1734379856747,-500.0,0.00029315,7]
[345610585,1734379856756,-500.0,0.00029315,7]
[345610586,1734379856766,-500.0,0.00029315,7]
[345610587,1734379856776,-500.0,0.00029315,7]
[345610588,1734379856786,-500.0,0.00029315,7]
[345610589,1734379856796,-500.0,0.00029315,7]
[345610590,1734379856805,-500.0,0.00029315,7]
[345610591,1734379856815,-500.0,0.00029315,7]
[345610592,1734379856824,-168.0,0.00029315,7]
[345610593,1734379856838,-500.0,0.00029315,7]
[345610594,1734379856848,-500.0,0.00029315,7]
[345610595,1734379856858,-1362.68,0.00029315,7]
[345610596,1734379856868,-1000.0,0.00029315,2]
[345610597,1734379856878,-930.18,0.00029315,7]
[345610598,1734379856887,-500.0,0.00029315,7]
[345610599,1734379856897,-500.0,0.00029315,7]
[345610600,1734379856907,-1159.82,0.00029315,2]
[345610601,1734379856918,-548.15,0.00029315,7]
[345610602,1734379856927,-507.31,0.00029315,7]
[345610603,1734379856937,-500.0,0.00029315,7]
[345610604,1734379856948,-831.58,0.00029315,7]
[345610605,1734379856958,-500.0,0.00029315,7]
[345610606,1734379856968,-716.28,0.00029315,7]
[345610607,1734379856978,-500.0,0.00029315,7]
[345610608,1734379856987,-500.0,0.00029315,7]
[345610609,1734379856998,-500.0,0.00029315,7]
[345610610,1734379857008,-500.0,0.00029315,7]
[345610611,1734379857021,-500.0,0.00029315,7]
[345610612,1734379857032,-500.0,0.00029315,7]
[345610613,1734379857043,-500.0,0.00029315,7]
[345610614,1734379857053,-500.0,0.00029315,7]
[345610615,1734379857062,-500.0,0.00029315,7]
[345610616,1734379857072,-500.0,0.00029315,7]
[345610617,1734379857082,-500.0,0.00029315,7]
[345610618,1734379857097,-500.0,0.00029315,7]
[345610619,1734379857106,-500.0,0.00029315,7]
[345610620,1734379857115,-500.0,0.00029315,7]
[345610621,1734379857125,-500.0,0.00029315,7]
[345610622,1734379857134,-500.0,0.00029315,7]
[345610623,1734379857144,-500.0,0.00029315,7]
[345610624,1734379857153,-500.0,0.00029315,7]
[345610625,1734379857163,-1281.29,0.00029315,7]
[345610626,1734379857172,-533.27,0.00029315,7]
[345610627,1734379857181,-500.0,0.00029315,7]
[345610628,1734379857191,-9328.35,0.00029315,7]
[345610629,1734379857201,-1051.75,0.00029315,7]
[345610630,1734379857210,-6080.86,0.00029315,7]
[345610631,1734379857220,-663.11,0.00029315,7]
[345610632,1734379857230,-4474.25,0.00029315,7]
[345610633,1734379857239,-1465.05,0.00029315,7]
[345610634,1734379857248,-500.0,0.00029315,7]
[345610635,1734379857258,-500.0,0.00029315,7]
[345610636,1734379857271,-2124.74,0.00029315,5]
[345610637,1734379857281,-1336.85,0.00029315,7]
[345610638,1734379857290,-500.0,0.00029315,7]
[345610639,1734379857300,-500.0,0.00029315,7]
[345610640,1734379857311,-500.0,0.00029315,7]
[345610641,1734379857320,-28712.1,0.00029315,7]
[345610642,1734379857330,-575.38,0.00029315,7]
[345610643,1734379857345,-942.46,0.00029315,7]
[345610644,1734379857356,-500.0,0.00029315,7]
[345610645,1734379857365,-1620.62,0.00029315,7]
[345610646,1734379857375,-500.0,0.00029315,7]
[345610647,1734379857385,-500.0,0.00029315,7]
[345610648,1734379857395,-500.0,0.00029315,2]
[345610649,1734379857404,-500.0,0.00029315,7]
[345610650,1734379857414,-1561.39,0.00029315,7]
[345610651,1734379857424,-500.0,0.00029315,7]
[345610652,1734379857435,-3178.65,0.00029315,7]
[345610653,1734379857445,-2897.69,0.00029315,7]
[345610654,1734379857456,-802.69,0.00029315,7]
[345610655,1734379857465,-500.0,0.00029315,7]
[345610656,1734379857475,-500.0,0.00029315,7]
[345610657,1734379857485,-1038.17,0.00029315,7]
[345610658,1734379857494,-500.0,0.00029315,7]
[345610659,1734379857504,-1984.0,0.00029315,7]
[345610660,1734379857514,-500.0,0.00029315,7]
[345610661,1734379857524,-659.89,0.00029315,7]
[345610662,1734379857535,-500.0,0.00029315,7]
[345610663,1734379857545,-1608.74,0.00029315,7]
[345610664,1734379857555,-500.0,0.00029315,7]
[345610665,1734379857565,-1378.43,0.00029315,7]
[345610666,1734379857576,-500.0,0.00029315,7]
[345610667,1734379857591,-500.0,0.00029315,7]
[345610668,1734379857601,-1465.72,0.00029315,7]
[345610669,1734379857611,-1110.6,0.00029315,7]
[345610670,1734379857620,-876.74,0.00029315,7]
[345610671,1734379857630,-500.0,0.00029315,7]
[345610672,1734379857640,-500.0,0.00029315,7]
[345610673,1734379857650,-5747.47,0.00029315,7]
[345610674,1734379857660,-500.0,0.00029315,7]
[345610675,1734379857669,-500.0,0.00029315,7]
[345610676,1734379857679,-351.89501065,0.00029315,7]
[345610677,1734379857689,-500.0,0.00029315,7]
[345610678,1734379857698,-500.0,0.00029315,7]
[345610679,1734379857707,-18840.47322887,0.000294,7]
[345610680,1734379857717,-1000.0,0.000294,2]
[345610681,1734379857726,-431.064158,0.00029461,4]
[345610682,1734379857736,-153.26,0.000295,31]
[345610683,1734379857746,-153.26,0.000295,31]
[345610684,1734379857755,-153.26,0.000295,31]
[345610685,1734379857765,-153.26,0.000295,31]
[345610686,1734379857774,-153.26,0.000295,31]
[345610687,1734379857784,-153.26,0.000295,31]
[345610688,1734379857793,-153.26,0.000295,31]
[345610689,1734379857802,-153.26,0.000295,31]
[345610690,1734379857812,-153.26,0.000295,31]
[345610691,1734379857821,-153.26,0.000295,31]
[345610692,1734379857831,-153.26,0.000295,31]
[345610693,1734379857857,-153.26,0.000295,31]
[345610694,1734379857867,-153.26,0.000295,31]
[345610695,1734379857876,-153.26,0.000295,31]
[345610696,1734379857885,-300.0,0.000295,14]
[345610697,1734379857894,-798.01965491,0.0002953,2]
[345610698,1734379857904,-9141.77691629,0.00029536,2]
[345610699,1734379857913,-303.30024024,0.0002958,2]
[345610700,1734379857922,-500.0,0.00029588,2]
[345610701,1734379857932,-224.02157627,0.00029588,2]
[345610702,1734379857942,-287.75001446,0.00029588,2]
[345610703,1734379857951,-500.0,0.00029588,2]
[345610704,1734379857961,-172.06785526,0.00029588,2]
[345610705,1734379857971,-151.0,0.00029589,7]
[345610706,1734379857980,-151.0,0.00029589,7]
[345610707,1734379857990,-500.0,0.00029589,7]
[345610708,1734379857999,-500.0,0.00029589,7]
[345610709,1734379858010,-500.0,0.00029589,7]
[345610710,1734379858019,-1361.4,0.00029589,7]
[345610711,1734379858029,-500.0,0.00029589,7]
[345610712,1734379858038,-500.0,0.00029589,7]
[345610713,1734379858048,-500.0,0.00029589,7]
[345610714,1734379858057,-500.0,0.00029589,7]
[345610715,1734379858067,-500.0,0.00029589,7]
[345610716,1734379858076,-500.0,0.00029589,7]
[345610717,1734379858086,-500.0,0.00029589,7]
[345610718,1734379858095,-500.0,0.00029589,7]
[345610719,1734379858105,-168.0,0.00029589,7]
[345610720,1734379858114,-500.0,0.00029589,7]
[345610721,1734379858124,-500.0,0.00029589,7]
[345610722,1734379858134,-1362.68,0.00029589,7]
[345610723,1734379858143,-910.71441657,0.00029589,2]
[345610724,1734379858153,-930.18,0.00029589,7]
[345610725,1734379858162,-500.0,0.00029589,7]
[345610726,1734379858172,-500.0,0.00029589,7]
[345610727,1734379858182,-1159.82,0.00029589,2]
[345610728,1734379858191,-548.15,0.00029589,7]
[345610729,1734379858201,-507.31,0.00029589,7]
[345610730,1734379858210,-500.0,0.00029589,7]
[345610731,1734379858220,-831.58,0.00029589,7]
[345610732,1734379858229,-500.0,0.00029589,7]
[345610733,1734379858239,-716.28,0.00029589,7]
[345610734,1734379858250,-500.0,0.00029589,7]
[345610735,1734379858260,-500.0,0.00029589,7]
[345610736,1734379858274,-500.0,0.00029589,7]
[345610737,1734379858283,-500.0,0.00029589,7]
[345610738,1734379858292,-500.0,0.00029589,7]
[345610739,1734379858302,-500.0,0.00029589,7]
[345610740,1734379858313,-500.0,0.00029589,7]
[345610741,1734379858323,-500.0,0.00029589,7]
[345610742,1734379858332,-500.0,0.00029589,7]
[345610743,1734379858351,-500.0,0.00029589,7]
[345610744,1734379858360,-500.0,0.00029589,7]
[345610745,1734379858370,-500.0,0.00029589,7]
[345610746,1734379858380,-500.0,0.00029589,7]
[345610747,1734379858389,-500.0,0.00029589,7]
[345610748,1734379858399,-500.0,0.00029589,7]
[345610749,1734379858449,-500.0,0.00029589,7]
[345610750,1734379858459,-500.0,0.00029589,7]
[345610751,1734379858468,-500.0,0.00029589,7]
[345610752,1734379858478,-1281.29,0.00029589,7]
[345610753,1734379858487,-533.27,0.00029589,7]
[345610754,1734379858496,-500.0,0.00029589,7]
[345610755,1734379858505,-9328.35,0.00029589,7]
[345610756,1734379858514,-1051.75,0.00029589,7]
[345610757,1734379858523,-6080.86,0.00029589,7]
[345610758,1734379858532,-663.11,0.00029589,7]
[345610759,1734379858542,-4474.25,0.00029589,7]
[345610760,1734379858551,-1465.05,0.00029589,7]
[345610761,1734379858560,-500.0,0.00029589,7]
[345610762,1734379858570,-640.49,0.00029589,7]
[345610763,1734379858579,-2124.74,0.00029589,5]
[345610764,1734379858590,-1336.85,0.00029589,7]
[345610765,1734379858600,-500.0,0.00029589,7]
[345610766,1734379858610,-500.0,0.00029589,7]
[345610767,1734379858620,-500.0,0.00029589,7]
[345610768,1734379858629,-28712.1,0.00029589,7]
[345610769,1734379858638,-575.38,0.00029589,7]
[345610770,1734379858648,-942.46,0.00029589,7]
[345610771,1734379858657,-500.0,0.00029589,7]
[345610772,1734379858666,-1620.62,0.00029589,7]
[345610773,1734379858675,-500.0,0.00029589,7]
[345610774,1734379858685,-500.0,0.00029589,7]
[345610775,1734379858694,-500.0,0.00029589,2]
[345610776,1734379858703,-500.0,0.00029589,7]
[345610777,1734379858712,-1561.39,0.00029589,7]
[345610778,1734379858722,-500.0,0.00029589,7]
[345610779,1734379858732,-3178.65,0.00029589,7]
[345610780,1734379858742,-2897.69,0.00029589,7]
[345610781,1734379858751,-802.69,0.00029589,7]
[345610782,1734379858760,-500.0,0.00029589,7]
[345610783,1734379858769,-500.0,0.00029589,7]
[345610784,1734379858780,-1038.17,0.00029589,7]
[345610785,1734379858790,-500.0,0.00029589,7]
[345610786,1734379858801,-1984.0,0.00029589,7]
[345610787,1734379858811,-500.0,0.00029589,7]
[345610788,1734379858821,-659.89,0.00029589,7]
[345610789,1734379858830,-500.0,0.00029589,7]
[345610790,1734379858841,-1608.74,0.00029589,7]
[345610791,1734379858850,-500.0,0.00029589,7]
[345610792,1734379858860,-1378.43,0.00029589,7]
[345610793,1734379858869,-500.0,0.00029589,7]
[345610794,1734379858878,-500.0,0.00029589,7]
[345610795,1734379858887,-1465.72,0.00029589,7]
[345610796,1734379858896,-1110.6,0.00029589,7]
[345610797,1734379858905,-876.74,0.00029589,7]
[345610798,1734379858914,-500.0,0.00029589,7]
[345610799,1734379858923,-500.0,0.00029589,7]
[345610800,1734379858933,-5747.47,0.00029589,7]
[345610801,1734379858942,-500.0,0.00029589,7]
[345610802,1734379858951,-500.0,0.00029589,7]
[345610803,1734379858961,-500.0,0.00029589,7]
[345610804,1734379858970,-500.0,0.00029589,7]
[345610805,1734379858979,-153.0,0.0002959,3]
[345610806,1734379858988,-153.0,0.0002959,3]
[345610807,1734379858997,-153.0,0.0002959,3]
[345610808,1734379859007,-153.0,0.0002959,3]
[345610809,1734379859016,-153.0,0.0002959,3]
[345610810,1734379859024,-153.0,0.0002959,3]
[345610811,1734379859034,-153.0,0.0002959,3]
[345610812,1734379859047,-153.0,0.0002959,3]
[345610813,1734379859066,-153.0,0.0002959,3]
[345610814,1734379859087,-153.0,0.0002959,3]
[345610815,1734379859097,-153.0,0.0002959,3]
[345610816,1734379859107,-153.0,0.0002959,3]
[345610817,1734379859116,-153.0,0.0002959,3]
[345610818,1734379859126,-153.0,0.0002959,3]
[345610819,1734379859136,-153.0,0.0002959,3]
[345610820,1734379859146,-166.0,0.0002959,3]
[345610821,1734379859155,-153.0,0.0002959,3]
[345610822,1734379859165,-167.11,0.0002959,3]
[345610823,1734379859174,-153.0,0.0002959,3]
[345610824,1734379859183,-153.0,0.0002959,3]
[345610825,1734379859192,-153.0,0.0002959,3]
[345610826,1734379859201,-153.0,0.0002959,3]
[345610827,1734379859211,-231.0,0.0002959,3]
[345610828,1734379859221,-2000.0,0.000296,2]
[345610829,1734379859231,-266.13,0.00029617,120]
[345610830,1734379859241,-181.477768,0.00029627,2]
[345610831,1734379859250,-151.0,0.0002963,7]
[345610832,1734379859259,-151.0,0.0002963,7]
[345610833,1734379859274,-151.0,0.0002963,7]
[345610834,1734379859283,-151.0,0.0002963,7]
[345610835,1734379859293,-151.0,0.0002963,7]
[345610836,1734379859302,-151.0,0.0002963,7]
[345610837,1734379859313,-151.0,0.0002963,7]
[345610838,1734379859322,-151.0,0.0002963,7]
[345610839,1734379859331,-151.0,0.0002963,7]
[345610840,1734379859343,-151.0,0.0002963,7]
[345610841,1734379859352,-151.0,0.0002963,7]
[345610842,1734379859362,-151.0,0.0002963,7]
[345610843,1734379859371,-151.0,0.0002963,7]
[345610844,1734379859380,-151.0,0.0002963,7]
[345610845,1734379859390,-151.0,0.0002963,7]
[345610846,1734379859399,-151.0,0.0002963,7]
[345610847,1734379859409,-401.026591,0.0002963,7]
[345610848,1734379859419,-401.026591,0.0002963,7]
[345610849,1734379859428,-401.026591,0.0002963,7]
[345610850,1734379859437,-401.026591,0.0002963,7]
[345610851,1734379859447,-401.026591,0.0002963,7]
[345610852,1734379859456,-401.026591,0.0002963,7]
[345610853,1734379859466,-401.026591,0.0002963,7]
[345610854,1734379859475,-401.026591,0.0002963,7]
[345610855,1734379859485,-401.026591,0.0002963,7]
[345610856,1734379859495,-401.026591,0.0002963,7]
[345610857,1734379859504,-401.026591,0.0002963,7]
[345610858,1734379859514,-401.026591,0.0002963,7]
[345610859,1734379859523,-401.026591,0.0002963,7]
[345610860,1734379859532,-401.026591,0.0002963,7]
[345610861,1734379859542,-401.026591,0.0002963,7]
[345610862,1734379859552,-401.026591,0.0002963,7]
[345610863,1734379859562,-401.026591,0.0002963,7]
[345610864,1734379859572,-401.026591,0.0002963,7]
[345610865,1734379859581,-401.026591,0.0002963,7]
[345610866,1734379859592,-401.026583,0.0002963,7]
[345610867,1734379859602,-1796.188177,0.0002963,7]
[345610868,1734379859611,-1796.188177,0.0002963,7]
[345610869,1734379859620,-1796.188177,0.0002963,7]
[345610870,1734379859630,-1796.188177,0.0002963,7]
[345610871,1734379859639,-1796.188177,0.0002963,7]
[345610872,1734379859649,-1796.188177,0.0002963,7]
[345610873,1734379859658,-1796.188177,0.0002963,7]
[345610874,1734379859668,-1796.188177,0.0002963,7]
[345610875,1734379859677,-1796.188177,0.0002963,7]
[345610876,1734379859686,-1796.188177,0.0002963,7]
[345610877,1734379859695,-1796.188177,0.0002963,7]
[345610878,1734379859705,-1796.188177,0.0002963,7]
[345610879,1734379859713,-1796.188177,0.0002963,7]
[345610880,1734379859723,-1796.188177,0.0002963,7]
[345610881,1734379859732,-1796.188177,0.0002963,7]
[345610882,1734379859741,-1796.188177,0.0002963,7]
[345610883,1734379859750,-1796.188177,0.0002963,7]
[345610884,1734379859759,-1796.188177,0.0002963,7]
[345610885,1734379859768,-1796.188177,0.0002963,7]
[345610886,1734379859777,-1796.188175,0.0002963,7]
[345610887,1734379859787,-151.0,0.0002963,7]
[345610888,1734379859796,-151.0,0.0002963,7]
[345610889,1734379859805,-183.645523,0.0002963,7]
[345610890,1734379859815,-151.0,0.0002963,7]
[345610891,1734379859824,-151.0,0.0002963,7]
[345610892,1734379859834,-151.0,0.0002963,7]
[345610893,1734379859843,-151.0,0.0002963,7]
[345610894,1734379859853,-151.0,0.0002963,7]
[345610895,1734379859862,-151.0,0.0002963,7]
[345610896,1734379859872,-151.0,0.0002963,7]
[345610897,1734379859881,-151.0,0.0002963,7]
[345610898,1734379859890,-151.0,0.0002963,7]
[345610899,1734379859900,-151.0,0.0002963,7]
[345610900,1734379859909,-151.0,0.0002963,7]
[345610901,1734379859919,-151.0,0.0002963,7]
[345610902,1734379859928,-193.256821,0.0002963,7]
[345610903,1734379859938,-151.0,0.0002963,7]
[345610904,1734379859947,-151.0,0.0002963,7]
[345610905,1734379859956,-151.0,0.0002963,7]
[345610906,1734379859966,-151.0,0.0002963,7]
[345610907,1734379859975,-151.0,0.0002963,7]
[345610908,1734379859984,-151.0,0.0002963,7]
[345610909,1734379859994,-151.0,0.0002963,7]
[345610910,1734379860004,-151.0,0.0002963,7]
[345610911,1734379860013,-151.0,0.0002963,7]
[345610912,1734379860023,-151.0,0.0002963,7]
[345610913,1734379860032,-260.515175,0.0002963,7]
[345610914,1734379860041,-231.756606,0.0002963,7]
[345610915,1734379860051,-231.756606,0.0002963,7]
[345610916,1734379860066,-231.756606,0.0002963,7]
[345610917,1734379860082,-231.756606,0.0002963,7]
[345610918,1734379860093,-231.756606,0.0002963,7]
[345610919,1734379860103,-231.756606,0.0002963,7]
[345610920,1734379860113,-231.756606,0.0002963,7]
[345610921,1734379860122,-231.756606,0.0002963,7]
[345610922,1734379860131,-231.756606,0.0002963,7]
[345610923,1734379860141,-231.756606,0.0002963,7]
[345610924,1734379860150,-231.756606,0.0002963,7]
[345610925,1734379860159,-231.756606,0.0002963,7]
[345610926,1734379860168,-231.756606,0.0002963,7]
[345610927,1734379860178,-231.756606,0.0002963,7]
[345610928,1734379860187,-231.756606,0.0002963,7]
[345610929,1734379860196,-231.756606,0.0002963,7]
[345610930,1734379860208,-231.756606,0.0002963,7]
[345610931,1734379860218,-231.756606,0.0002963,7]
[345610932,1734379860227,-231.756606,0.0002963,7]
[345610933,1734379860236,-231.75661209,0.0002963,7]
[345610934,1734379860246,-168.628723,0.0002963,7]
[345610935,1734379860255,-168.628723,0.0002963,7]
[345610936,1734379860267,-168.628723,0.0002963,7]
[345610937,1734379860278,-168.628723,0.0002963,7]
[345610938,1734379860287,-168.628723,0.0002963,7]
[345610939,1734379860296,-168.628723,0.0002963,7]
[345610940,1734379860307,-168.628723,0.0002963,7]
[345610941,1734379860316,-168.628723,0.0002963,7]
[345610942,1734379860326,-168.628723,0.0002963,7]
[345610943,1734379860336,-168.628723,0.0002963,7]
[345610944,1734379860348,-168.628723,0.0002963,7]
[345610945,1734379860358,-168.628723,0.0002963,7]
[345610946,1734379860368,-168.628723,0.0002963,7]
[345610947,1734379860378,-168.628723,0.0002963,7]
[345610948,1734379860387,-168.628723,0.0002963,7]
[345610949,1734379860397,-168.628723,0.0002963,7]
[345610950,1734379860406,-168.628723,0.0002963,7]
[345610951,1734379860416,-168.628723,0.0002963,7]
[345610952,1734379860426,-168.628723,0.0002963,7]
[345610953,1734379860436,-168.628717,0.0002963,7]
[345610954,1734379860446,-156245.52969485,0.0002963,2]
[345610955,1734379860455,-11177.77821037,0.0002963,2]
[345610956,1734379860465,-986607.25680757,0.0002963,10]
[345610957,1734379860579,-19999.69668,0.0002963,10]
[345610958,1734379860896,-255.84500219,0.00027397,7]
[345610961,1734380358700,164.232645,0.00013973,2]
[345611036,1734381035972,-518.69400863,0.0002235,2]
[345611038,1734381035984,-320.27818371,0.00022398,6]
[345611059,1734381038979,-1007.1,0.00022398,6]
[345611065,1734381039035,-401.33490536,0.00022398,6]
[345611067,1734381039046,-300.0,0.00022399,2]
[345611069,1734381039056,-8.66509464,0.00022399,2]
[345611072,1734381039067,-291.33490536,0.00022399,2]
[345611074,1734381039077,-10592.96607468,0.000224,2]
[345611231,1734381040615,-582.04603108,0.000224,2]
[345611235,1734381040630,-2040.8022408,0.000224,2]
[345611238,1734381040641,-6330.40875034,0.000224,2]
[345611242,1734381040658,-15453.7769031,0.000224,2]
[345611244,1734381040668,-19802.0,0.0002245,2]
[345611247,1734381040678,-164.232645,0.00022759,2]
[345611248,1734381040687,-172.35944,0.0002327,2]
[345611251,1734381040698,-518.69400859,0.00023382,2]
[345611252,1734381040708,-518.69400859,0.00024415,2]
[345611254,1734381040718,-420.0,0.00024639,2]
[345611256,1734381040728,-518.69400859,0.00025447,2]
[345611258,1734381040738,-253.92419856,0.000255,2]
[345611259,1734381040747,-108516.09166054,0.00026,30]
[345611262,1734381040757,-2336.3744037,0.00026301,2]
[345611264,1734381040768,-196.799105,0.00026377,2]
[345611266,1734381040778,-500.0,0.00026473,2]
[345611267,1734381040788,-518.69400859,0.0002648,2]
[345611269,1734381040798,-89153.33202019,0.000265,2]
[345611546,1734381043513,-2200.0,0.000265,2]
[345611553,1734381043572,-5239.90386476,0.000265,2]
[345611709,1734381046536,-549.742494,0.000265,2]
[345611710,1734381046596,-850931.58751663,0.000265,2]
[345611711,1734381046608,-360.87,0.000265,2]
[345611712,1734381058655,7335.53732099,0.0001,2]
[345611713,1734381058683,65059.61064941,0.0001,2]
[345611717,1734381341115,163.84016,0.00013973,2]
[345611720,1734381884754,2000.0,0.0002556,60]
[345611803,1734382191281,163.678839,0.00013973,2]
[345611820,1734382232631,-163.678839,0.00022759,2]
[345611822,1734382232641,-300.0,0.00024999,2]
[345611824,1734382232651,-300.0,0.00024999,2]
[345611827,1734382232661,-40154.17380701,0.00025,2]
[345611829,1734382232670,-803.8051069,0.00025243,2]
[345611831,1734382232680,-181.801877,0.00025328,2]
[345611833,1734382232690,-189.926566,0.00025753,2]
[345611835,1734382232700,-10445.75867062,0.00025958,2]
[345611837,1734382232711,-157.48519573,0.00026,2]